bitfinex/quotes_BTCUSD_20250620
["timestamp","ask_amount","ask_price","bid_price","bid_amount"]
[1750388011995,1.04146289,104740.0,104730.0,0.24975905]
[1750388013253,1.03191572,104740.0,104730.0,0.24975905]
[1750388013913,1.0032752,104740.0,104730.0,0.24975905]
[1750388014130,0.34954663,104740.0,104730.0,0.24975905]
[1750388014378,0.6716376,104740.0,104730.0,0.24975905]
[1750388014584,1.02236864,104740.0,104730.0,0.24975905]
[1750388014786,1.03191563,104740.0,104730.0,0.24975905]
[1750388015219,1.03191563,104740.0,104730.0,0.24975904]
[1750388015220,1.04146289,104740.0,104730.0,0.24975904]
[1750388016686,1.0414628,104740.0,104730.0,0.24975904]
[1750388018840,1.05101006,104740.0,104730.0,0.24975904]
[1750388019736,1.05101006,104740.0,104730.0,0.24975903]
[1750388020165,1.05101078,104740.0,104730.0,0.24975903]
[1750388020377,1.24195979,104740.0,104730.0,0.24975903]
[1750388020597,1.24196043,104740.0,104730.0,0.2306635]
[1750388021044,1.24196043,104740.0,104730.0,0.24021131]
[1750388022106,1.04146397,104740.0,104730.0,0.24021131]
[1750388022311,1.04146397,104740.0,104730.0,0.24975903]
[1750388024265,1.23241298,104740.0,104730.0,0.24975903]
[1750388025152,0.36864142,104740.0,104730.0,0.24975903]
[1750388025363,1.03191662,104740.0,104730.0,0.24975903]
[1750388025576,1.03191662,104740.0,104730.0,0.24975902]
[1750388026637,1.03191662,104740.0,104730.0,0.29475902]
[1750388028225,1.22286563,104740.0,104730.0,0.29475902]
[1750388028439,1.23241298,104740.0,104730.0,0.29475902]
[1750388030734,1.04146397,104740.0,104730.0,0.29475902]
[1750388031155,1.03191662,104740.0,104730.0,0.29475902]
[1750388033339,1.22286563,104740.0,104730.0,0.29475901]
[1750388033566,1.23241298,104740.0,104730.0,0.29475901]
[1750388033983,1.04146397,104740.0,104730.0,0.29475901]
[1750388034193,1.23241298,104740.0,104730.0,0.29475901]
[1750388034627,1.04146397,104740.0,104730.0,0.29475901]
[1750388039336,1.23241298,104740.0,104730.0,0.29475901]
[1750388040446,1.04146397,104740.0,104730.0,0.29475901]
[1750388041115,1.04146397,104740.0,104730.0,0.294759]
[1750388050382,1.03191662,104740.0,104730.0,0.294759]
[1750388052230,1.02236891,104740.0,104730.0,0.294759]
[1750388052441,1.03191608,104740.0,104730.0,0.294759]
[1750388053417,1.04146334,104740.0,104730.0,0.294759]
[1750388058885,1.04146334,104740.0,104730.0,0.29475899]
[1750388062570,1.05101069,104740.0,104730.0,0.29475899]
[1750388066863,1.24196043,104740.0,104730.0,0.29475899]
[1750388067951,1.04146397,104740.0,104730.0,0.29475899]
[1750388068610,1.04146397,104740.0,104730.0,0.29475898]
[1750388069032,1.23241298,104740.0,104730.0,0.29475898]
[1750388069470,1.04146397,104740.0,104730.0,0.29475898]
[1750388069899,1.23241298,104740.0,104730.0,0.29475898]
[1750388072516,1.04146397,104740.0,104730.0,0.29475898]
[1750388074434,1.03191662,104740.0,104730.0,0.29475898]
[1750388074840,1.03191662,104740.0,104730.0,0.29475897]
[1750388075923,1.23241298,104740.0,104730.0,0.29475897]
[1750388078716,1.04146397,104740.0,104730.0,0.29475897]
[1750388081566,1.23241298,104740.0,104730.0,0.29475897]
[1750388083235,1.04146397,104740.0,104730.0,0.29475897]
[1750388087386,1.23241344,104740.0,104730.0,0.25538755]
[1750388087557,1.23241344,104740.0,104730.0,0.2294839]
[1750388087763,1.23241344,104740.0,104730.0,0.22948389]
[1750388088052,1.23241344,104740.0,104730.0,0.25432389]
[1750388088361,1.22286627,104740.0,104730.0,0.27782389]
[1750388089149,0.88286627,104740.0,104730.0,0.27782389]
[1750388090663,0.88286627,104740.0,104730.0,0.2969196]
[1750388090882,0.88286627,104740.0,104730.0,0.29691959]
[1750388096035,0.68236981,104740.0,104730.0,0.29691895]
[1750388097577,0.68236936,104740.0,104730.0,0.29691895]
[1750388097864,0.682369,104740.0,104730.0,0.29691895]
[1750388098284,4.88325224,104750.0,104740.0,0.21959053]
[1750388098497,4.88325224,104750.0,104740.0,0.2761727]
[1750388098698,4.88325224,104750.0,104740.0,0.27617269]
[1750388098906,4.68893224,104750.0,104740.0,0.27496268]
[1750388099116,4.89279774,104750.0,104740.0,0.28571946]
[1750388099330,4.89279774,104750.0,104740.0,0.28571944]
[1750388099549,5.55607294,104750.0,104740.0,0.28571943]
[1750388099750,5.36714162,104750.0,104740.0,0.28571941]
[1750388099955,5.37668797,104750.0,104740.0,0.28571939]
[1750388100373,5.37588797,104750.0,104740.0,0.28571938]
[1750388100572,5.90681875,104750.0,104740.0,0.28571934]
[1750388100822,5.91836519,104750.0,104740.0,0.28571933]
[1750388101022,5.91836519,104750.0,104740.0,0.26662561]
[1750388101234,5.91836519,104750.0,104740.0,0.27617268]
[1750388101449,5.91836519,104750.0,104740.0,0.27617267]
[1750388101869,5.91836519,104750.0,104740.0,0.27617266]
[1750388102073,5.91836519,104750.0,104740.0,0.27617265]
[1750388102517,5.91836519,104750.0,104740.0,0.27617264]
[1750388103395,5.92791172,104750.0,104740.0,0.28571963]
[1750388103609,5.92791172,104750.0,104740.0,0.29526652]
[1750388103818,5.92791172,104750.0,104740.0,0.29526651]
[1750388104286,5.90881965,104750.0,104740.0,0.28571961]
[1750388104679,5.90881965,104750.0,104740.0,0.2857196]
[1750388105250,5.90881965,104750.0,104740.0,0.28571959]
[1750388105651,5.90881965,104750.0,104740.0,0.28571958]
[1750388106060,5.90881965,104750.0,104740.0,0.28571957]
[1750388106268,5.90881965,104750.0,104740.0,0.28571956]
[1750388106470,5.8992733,104750.0,104740.0,0.27617257]
[1750388108738,5.97545926,104750.0,104740.0,0.00987186]
[1750388108953,5.99885926,104750.0,104740.0,0.00987185]
[1750388109165,6.02195926,104750.0,104740.0,0.00987185]
[1750388110026,6.02206926,104750.0,104740.0,0.00987185]
[1750388114767,6.02195926,104750.0,104740.0,0.00987185]
[1750388115147,5.99885926,104750.0,104740.0,0.00987185]
[1750388115733,5.97545926,104750.0,104740.0,0.00987185]
[1750388118806,5.97545926,104750.0,104740.0,0.20082086]
[1750388119022,5.9850057,104750.0,104740.0,0.21991548]
[1750388119244,5.9850057,104750.0,104740.0,0.26562546]
[1750388119459,5.9850057,104750.0,104740.0,0.26562545]
[1750388120116,5.9850057,104750.0,104740.0,0.26562544]
[1750388120540,5.9850057,104750.0,104740.0,0.27517252]
[1750388121207,5.9850057,104750.0,104740.0,0.27517251]
[1750388121431,5.9850057,104750.0,104740.0,0.26562543]
[1750388122174,5.9850057,104750.0,104740.0,0.27517251]
[1750388122400,5.9850057,104750.0,104740.0,0.2751725]
[1750388123042,5.9850057,104750.0,104740.0,0.27517249]
[1750388123271,5.9850057,104750.0,104740.0,0.27517248]
[1750388123999,5.33127703,104750.0,104740.0,0.28471947]
[1750388124238,5.80674488,104750.0,104740.0,0.28471946]
[1750388124457,5.80674488,104750.0,104740.0,0.28471944]
[1750388125111,5.81928757,104750.0,104740.0,0.28471942]
[1750388125334,5.81928757,104750.0,104740.0,0.28471941]
[1750388127382,0.4057685,104750.0,104740.0,0.29426622]
[1750388127605,0.75649817,104750.0,104740.0,0.2942662]
[1750388127821,0.746952,104750.0,104740.0,0.29426618]
[1750388128008,0.75649808,104750.0,104740.0,0.29426618]
[1750388128731,0.75649808,104750.0,104740.0,0.29426617]
[1750388129555,0.75449808,104750.0,104740.0,0.29426617]
[1750388129754,0.75349808,104750.0,104740.0,0.29426617]
[1750388129983,0.75349808,104750.0,104740.0,0.29426616]
[1750388131014,0.704272,104750.0,104740.0,0.29426615]
[1750388131249,0.34518029,104750.0,104740.0,0.29426615]
[1750388131479,0.34518029,104750.0,104740.0,0.29426613]
[1750388131691,0.68518029,104750.0,104740.0,0.44882611]
[1750388131902,0.35354269,104750.0,104740.0,0.4488261]
[1750388132125,0.68518029,104750.0,104740.0,0.44882609]
[1750388132343,0.68518029,104750.0,104740.0,0.55864586]
[1750388132612,0.3326376,104750.0,104740.0,0.55864585]
[1750388132811,0.3326376,104750.0,104740.0,0.55864582]
[1750388133047,0.001,104750.0,104740.0,0.8902834]
[1750388133268,0.001,104750.0,104740.0,0.89028337]
[1750388133489,0.001,104750.0,104740.0,0.55864576]
[1750388133710,0.34423348,104760.0,104750.0,0.26486929]
[1750388133979,0.34423348,104760.0,104750.0,0.27598073]
[1750388134200,0.34423348,104760.0,104750.0,0.27598071]
[1750388134420,0.34423348,104760.0,104750.0,0.27598069]
[1750388134645,0.3316876,104760.0,104750.0,0.38580045]
[1750388134868,0.3316876,104760.0,104750.0,0.38580042]
[1750388135094,0.33273479,104760.0,104750.0,0.38580039]
[1750388135311,0.33273479,104760.0,104750.0,0.38580035]
[1750388135711,0.33273479,104760.0,104750.0,0.38580034]
[1750388135933,0.33273479,104760.0,104750.0,0.38580033]
[1750388136349,0.33273479,104760.0,104750.0,0.38580032]
[1750388136987,0.00109719,104760.0,104750.0,0.38580032]
[1750388137215,0.33273479,104760.0,104750.0,0.3858003]
[1750388137427,0.33273479,104760.0,104750.0,0.38580029]
[1750388137636,0.33273479,104760.0,104750.0,0.38580028]
[1750388137858,0.33273479,104760.0,104750.0,0.38580027]
[1750388138072,0.33273479,104760.0,104750.0,0.38580025]
[1750388138279,0.33273479,104760.0,104750.0,0.38580024]
[1750388138505,0.33273479,104760.0,104750.0,0.38580023]
[1750388138921,0.33273479,104760.0,104750.0,0.38580022]
[1750388139126,0.33273479,104760.0,104750.0,0.3858002]
[1750388139369,0.00109719,104760.0,104750.0,0.38580019]
[1750388139588,0.00109719,104760.0,104750.0,0.38580018]
[1750388139810,0.00109719,104760.0,104750.0,0.38580017]
[1750388140028,0.00109719,104760.0,104750.0,0.38580016]
[1750388140248,0.33273479,104760.0,104750.0,0.38580016]
[1750388140461,0.33273479,104760.0,104750.0,0.38580014]
[1750388140893,0.33273479,104760.0,104750.0,0.38580013]
[1750388141120,0.33273479,104760.0,104750.0,0.38580012]
[1750388141629,0.33273479,104760.0,104750.0,0.38580011]
[1750388142502,0.00109719,104760.0,104750.0,0.3858001]
[1750388142715,0.33273479,104760.0,104750.0,0.3858001]
[1750388142925,0.33273479,104760.0,104750.0,0.38580009]
[1750388143551,0.33273479,104760.0,104750.0,0.38580008]
[1750388144380,0.33273479,104760.0,104750.0,0.38580007]
[1750388145256,0.33273479,104760.0,104750.0,0.38580006]
[1750388146103,0.00109719,104760.0,104750.0,0.38580005]
[1750388146321,0.33273479,104760.0,104750.0,0.38580005]
[1750388147398,0.33273479,104760.0,104750.0,0.38580004]
[1750388148853,0.33273479,104760.0,104750.0,0.38580003]
[1750388150827,0.33273479,104760.0,104750.0,0.38580002]
[1750388152515,0.33273479,104760.0,104750.0,0.61028001]
[1750388152728,0.66437239,104760.0,104750.0,0.61028]
[1750388153159,0.66437239,104760.0,104750.0,0.61027999]
[1750388153377,0.66437239,104760.0,104750.0,0.61027998]
[1750388154703,0.66437239,104760.0,104750.0,0.54027997]
[1750388154917,0.66437239,104760.0,104750.0,0.54027996]
[1750388155130,0.66437239,104760.0,104750.0,0.54027995]
[1750388155560,0.00109719,104760.0,104750.0,0.54027994]
[1750388155781,0.33273479,104760.0,104750.0,0.54027992]
[1750388156640,0.33273479,104760.0,104750.0,0.54027991]
[1750388157334,0.33173479,104760.0,104750.0,0.5402799]
[1750388157579,0.33173479,104760.0,104750.0,0.5412799]
[1750388158004,0.33173479,104760.0,104750.0,0.61127989]
[1750388158215,0.33173479,104760.0,104750.0,0.61227989]
[1750388158429,0.33173479,104760.0,104750.0,0.61127989]
[1750388158642,9.719e-05,104760.0,104750.0,0.94491749]
[1750388158861,9.719e-05,104760.0,104750.0,0.94491745]
[1750388159079,9.719e-05,104760.0,104750.0,0.94691744]
[1750388159290,9.719e-05,104760.0,104750.0,0.94691742]
[1750388159685,9.719e-05,104760.0,104750.0,0.94691741]
[1750388159991,9.719e-05,104760.0,104750.0,0.9469174]
[1750388160211,9.719e-05,104760.0,104750.0,0.6152798]
[1750388160414,9.719e-05,104760.0,104750.0,0.94691739]
[1750388160867,9.719e-05,104760.0,104750.0,0.61527978]
[1750388161708,0.33173479,104760.0,104750.0,0.61527977]
[1750388162374,0.33173479,104760.0,104750.0,0.61527976]
[1750388162812,0.33173479,104760.0,104750.0,0.61527975]
[1750388164636,0.33173479,104760.0,104750.0,0.61527974]
[1750388166312,0.13007376,104760.0,104750.0,0.61527974]
[1750388166527,0.13007376,104760.0,104750.0,0.61527973]
[1750388166947,0.13007376,104760.0,104750.0,0.61527972]
[1750388167399,0.13007376,104760.0,104750.0,0.61527971]
[1750388168513,0.13007376,104760.0,104750.0,0.6152797]
[1750388169734,0.01301751,104770.0,104760.0,0.27840919]
[1750388169947,0.34465511,104770.0,104760.0,0.38355873]
[1750388170147,0.34465511,104770.0,104760.0,0.38355872]
[1750388170867,0.34465511,104770.0,104760.0,0.38355871]
[1750388171071,0.34465511,104770.0,104760.0,0.3845587]
[1750388171474,0.34465511,104770.0,104760.0,0.3855587]
[1750388171887,0.34465511,104770.0,104760.0,0.38555869]
[1750388172564,0.34465511,104770.0,104760.0,0.38555868]
[1750388173942,0.34465511,104770.0,104760.0,0.38555867]
[1750388174431,0.70031791,104780.0,104770.0,0.21952737]
[1750388174663,1.03200267,104780.0,104770.0,0.22939791]
[1750388174864,1.03200267,104780.0,104770.0,0.22939789]
[1750388175073,1.03200267,104780.0,104770.0,0.22939788]
[1750388175269,1.03200267,104780.0,104770.0,0.22939787]
[1750388175902,1.03200267,104780.0,104770.0,0.22939786]
[1750388176490,1.03200267,104780.0,104770.0,0.22939785]
[1750388176689,1.03200267,104780.0,104770.0,0.22939784]
[1750388177292,1.03200267,104780.0,104770.0,0.22939783]
[1750388177513,1.03200267,104780.0,104770.0,0.22939782]
[1750388177762,1.26967879,104780.0,104770.0,0.00987044]
[1750388177982,6.04000977,104780.0,104770.0,0.00987044]
[1750388178185,5.98700907,104780.0,104770.0,0.00987044]
[1750388178811,5.99984407,104780.0,104770.0,0.00987044]
[1750388179020,6.00184407,104780.0,104770.0,0.00987044]
[1750388179228,6.00384407,104780.0,104770.0,0.00987044]
[1750388179588,6.09911392,104780.0,104770.0,0.00987044]
[1750388179799,6.00384407,104780.0,104770.0,0.00987044]
[1750388180086,6.03252907,104780.0,104770.0,0.00987044]
[1750388180710,6.03252907,104780.0,104770.0,0.00987043]
[1750388188552,6.07204907,104780.0,104770.0,0.00987043]
[1750388190715,6.07204907,104780.0,104770.0,0.00987042]
[1750388192414,6.22644907,104780.0,104770.0,0.00987042]
[1750388206183,6.24929816,104780.0,104770.0,0.00987041]
[1750388206397,6.25822058,104780.0,104770.0,0.00987041]
[1750388206612,6.35349043,104780.0,104770.0,0.00987041]
[1750388207093,6.25822058,104780.0,104770.0,0.00987041]
[1750388208189,6.25811058,104780.0,104770.0,0.00987041]
[1750388208414,6.25822058,104780.0,104770.0,0.00987041]
[1750388210340,6.24929816,104780.0,104770.0,0.00987041]
[1750388210600,6.2582314,104780.0,104770.0,0.00987041]
[1750388211255,6.2582314,104780.0,104770.0,0.0098704]
[1750388214158,6.25823132,104780.0,104770.0,0.0098704]
[1750388216045,6.25823138,104780.0,104770.0,0.0098704]
[1750388218471,5.91818138,104780.0,104770.0,0.0098704]
[1750388218684,5.91818152,104780.0,104770.0,0.0098704]
[1750388218903,5.91818152,104780.0,104770.0,0.00987039]
[1750388219427,5.91807152,104780.0,104770.0,0.00987039]
[1750388220264,5.87227152,104780.0,104770.0,0.00987039]
[1750388220476,6.21227152,104780.0,104770.0,0.00987039]
[1750388220916,6.21227141,104780.0,104770.0,0.00987039]
[1750388221473,6.21227142,104780.0,104770.0,0.00987039]
[1750388224174,6.21227149,104780.0,104770.0,0.00987039]
[1750388225263,6.21227142,104780.0,104770.0,0.00987039]
[1750388228205,6.21227142,104780.0,104770.0,0.00987038]
[1750388228419,6.20333816,104780.0,104770.0,0.00987038]
[1750388231705,6.20333816,104780.0,104770.0,0.00987037]
[1750388233732,6.19379472,104780.0,104770.0,0.00987037]
[1750388237527,6.19379472,104780.0,104770.0,0.00987036]
[1750388240459,5.83519866,104770.0,104760.0,0.0235]
[1750388240699,0.200458,104760.0,104750.0,0.12247494]
[1750388240925,6.08481673,104760.0,104750.0,0.05610036]
[1750388241212,6.11350673,104760.0,104750.0,0.05610036]
[1750388242261,6.11450673,104760.0,104750.0,0.05610036]
[1750388242480,6.11350673,104760.0,104750.0,0.05610036]
[1750388242894,6.11650673,104760.0,104750.0,0.05610036]
[1750388243107,6.14455686,104760.0,104750.0,0.05610036]
[1750388243323,6.14655686,104760.0,104750.0,0.05610036]
[1750388243794,6.11850673,104760.0,104750.0,0.05610036]
[1750388247700,6.14732433,104760.0,104750.0,0.05610036]
[1750388255628,5.67091208,104760.0,104750.0,0.05610036]
[1750388255675,5.82523208,104760.0,104750.0,0.24703114]
[1750388256181,5.82523208,104760.0,104750.0,0.243828]
[1750388257662,5.82523208,104760.0,104750.0,0.05289722]
[1750388257925,5.82523208,104760.0,104750.0,0.243828]
[1750388258171,5.82523208,104760.0,104750.0,0.05289722]
[1750388258869,5.82523208,104760.0,104750.0,0.25337453]
[1750388259602,5.82523208,104760.0,104750.0,0.05289722]
[1750388262419,5.82523208,104760.0,104750.0,0.243828]
[1750388262656,5.81568673,104760.0,104750.0,0.06244375]
[1750388262907,5.81568673,104760.0,104750.0,0.05289722]
[1750388263856,5.80614129,104760.0,104750.0,0.05289722]
[1750388264589,5.81568673,104760.0,104750.0,0.05289722]
[1750388264784,5.66136673,104760.0,104750.0,0.05289722]
[1750388265041,5.85516673,104760.0,104750.0,0.05289722]
[1750388265269,5.66136673,104760.0,104750.0,0.05289722]
[1750388265456,5.85516673,104760.0,104750.0,0.243828]
[1750388265696,5.84562129,104760.0,104750.0,0.05289722]
[1750388266224,5.84558129,104760.0,104750.0,0.05289722]
[1750388266846,5.84558129,104760.0,104750.0,0.243828]
[1750388269346,5.81676369,104760.0,104750.0,0.243828]
[1750388269620,5.81676369,104760.0,104750.0,0.24382799]
[1750388270088,5.81676369,104760.0,104750.0,0.05289721]
[1750388270737,5.81676369,104760.0,104750.0,0.24382799]
[1750388271383,5.81676369,104760.0,104750.0,0.05289721]
[1750388271814,5.81676369,104760.0,104750.0,0.25337452]
[1750388274701,5.81676369,104760.0,104750.0,0.26292096]
[1750388277982,5.81676369,104760.0,104750.0,0.25337452]
[1750388278418,5.81676369,104760.0,104750.0,0.05289721]
[1750388280626,5.81676369,104760.0,104750.0,0.25337452]
[1750388281268,5.81676369,104760.0,104750.0,0.24382799]
[1750388281703,5.81676369,104760.0,104750.0,0.25337452]
[1750388282346,5.81676369,104760.0,104750.0,0.05289721]
[1750388282748,5.81676369,104760.0,104750.0,0.24382799]
[1750388283496,5.81676369,104760.0,104750.0,0.25337452]
[1750388285343,5.78807369,104760.0,104750.0,0.26292078]
[1750388285561,4.84530491,104760.0,104750.0,0.28201285]
[1750388285789,1.40119414,104760.0,104750.0,0.28201285]
[1750388286043,1.3916497,104760.0,104750.0,0.25337452]
[1750388286280,1.38210435,104760.0,104750.0,0.27246731]
[1750388286744,1.37255891,104760.0,104750.0,0.24382799]
[1750388286975,1.37255891,104760.0,104750.0,0.25337452]
[1750388287195,1.37255891,104760.0,104750.0,0.25337451]
[1750388287623,1.37255891,104760.0,104750.0,0.26292077]
[1750388288525,1.37255891,104760.0,104750.0,0.26292095]
[1750388290402,1.36301338,104760.0,104750.0,0.26292095]
[1750388291279,1.36301338,104760.0,104750.0,0.25337451]
[1750388291507,1.35346776,104760.0,104750.0,0.25337451]
[1750388292139,1.35346776,104760.0,104750.0,0.26292095]
[1750388293256,1.35346776,104760.0,104750.0,0.2724673]
[1750388295215,1.39290776,104760.0,104750.0,0.2724673]
[1750388295864,1.39290776,104760.0,104750.0,0.26292095]
[1750388297383,1.39290776,104760.0,104750.0,0.25337451]
[1750388298784,1.39290776,104760.0,104750.0,0.26292095]
[1750388301097,1.21827819,104760.0,104750.0,0.28201356]
[1750388301363,1.39160925,104760.0,104750.0,0.29155928]
[1750388301596,1.38206417,104760.0,104750.0,0.26292077]
[1750388301805,1.37251882,104760.0,104750.0,0.25337442]
[1750388302275,1.37251882,104760.0,104750.0,0.26292077]
[1750388302519,1.37251882,104760.0,104750.0,0.27246703]
[1750388302733,1.37251882,104760.0,104750.0,0.2820132]
[1750388303808,1.17206037,104760.0,104750.0,0.2820132]
[1750388304041,1.18160572,104760.0,104750.0,0.29155919]
[1750388304616,1.1625152,104760.0,104750.0,0.29155919]
[1750388304835,1.17206009,104760.0,104750.0,0.29155865]
[1750388305049,1.18160526,104760.0,104750.0,0.29155865]
[1750388305255,1.18160517,104760.0,104750.0,0.29155865]
[1750388305917,1.19115043,104760.0,104750.0,0.29155865]
[1750388306129,1.19115034,104760.0,104750.0,0.29155865]
[1750388306774,1.18160517,104760.0,104750.0,0.29155865]
[1750388307032,1.19115034,104760.0,104750.0,0.29155865]
[1750388309323,1.20069569,104760.0,104750.0,0.28201275]
[1750388309557,1.20069569,104760.0,104750.0,0.29155865]
[1750388309774,1.20069569,104760.0,104750.0,0.28201275]
[1750388309994,1.21024131,104760.0,104750.0,0.27246676]
[1750388310208,1.24964122,104760.0,104750.0,0.27246676]
[1750388310757,1.24964122,104760.0,104750.0,0.28201284]
[1750388310965,1.24964122,104760.0,104750.0,0.27246676]
[1750388311148,1.24009569,104760.0,104750.0,0.28201284]
[1750388311348,1.24964113,104760.0,104750.0,0.28201284]
[1750388311564,1.24964113,104760.0,104750.0,0.27246676]
[1750388311798,1.24009569,104760.0,104750.0,0.29155865]
[1750388312037,1.24009569,104760.0,104750.0,0.28201284]
[1750388312258,1.24009569,104760.0,104750.0,0.29155883]
[1750388312478,1.24009569,104760.0,104750.0,0.28201284]
[1750388312702,1.24009569,104760.0,104750.0,0.29155883]
[1750388312917,1.24009569,104760.0,104750.0,0.28201284]
[1750388313147,1.24964113,104760.0,104750.0,0.28201284]
[1750388313773,1.24964113,104760.0,104750.0,0.27246676]
[1750388314241,1.24964113,104760.0,104750.0,0.28201284]
[1750388314972,1.24764113,104760.0,104750.0,0.28201284]
[1750388315177,1.24764113,104760.0,104750.0,0.27246676]
[1750388315381,1.24864113,104760.0,104750.0,0.27246676]
[1750388315629,1.24864113,104760.0,104750.0,0.28201284]
[1750388315823,1.24564113,104760.0,104750.0,0.28201284]
[1750388316039,1.24664113,104760.0,104750.0,0.28201284]
[1750388316196,1.24664113,104760.0,104750.0,0.29155883]
[1750388316400,1.24664113,104760.0,104750.0,0.28201284]
[1750388317196,1.23709569,104760.0,104750.0,0.28201284]
[1750388317519,1.24664122,104760.0,104750.0,0.28201284]
[1750388317738,1.24664122,104760.0,104750.0,0.27246676]
[1750388318808,1.23709569,104760.0,104750.0,0.27246676]
[1750388319050,1.23709569,104760.0,104750.0,0.28201284]
[1750388319221,1.24664122,104760.0,104750.0,0.27246676]
[1750388319776,1.23709569,104760.0,104750.0,0.27246676]
[1750388319982,1.23709569,104760.0,104750.0,0.28201284]
[1750388320198,1.24664122,104760.0,104750.0,0.28201284]
[1750388320458,1.23709569,104760.0,104750.0,0.28201284]
[1750388321419,1.23709569,104760.0,104750.0,0.27246676]
[1750388321655,1.23709569,104760.0,104750.0,0.28201284]
[1750388322493,1.23709569,104760.0,104750.0,0.29155883]
[1750388322712,1.23709569,104760.0,104750.0,0.28201284]
[1750388322959,1.23709569,104760.0,104750.0,0.29155883]
[1750388323178,1.23709569,104760.0,104750.0,0.28201284]
[1750388324709,1.21800517,104760.0,104750.0,0.29155874]
[1750388325421,1.22755043,104760.0,104750.0,0.29155874]
[1750388325648,1.22755034,104760.0,104750.0,0.29155874]
[1750388326429,1.22755034,104760.0,104750.0,0.29155873]
[1750388328456,1.22755034,104760.0,104750.0,0.28201283]
[1750388328672,1.22755034,104760.0,104750.0,0.29155837]
[1750388328884,1.23709569,104760.0,104750.0,0.28201247]
[1750388329086,1.22755034,104760.0,104750.0,0.28201247]
[1750388329311,1.23709569,104760.0,104750.0,0.28201247]
[1750388329514,1.2370956,104760.0,104750.0,0.28201247]
[1750388330330,1.24664095,104760.0,104750.0,0.27246648]
[1750388330590,1.2370956,104760.0,104750.0,0.27246648]
[1750388330801,1.22755034,104760.0,104750.0,0.29155837]
[1750388330998,1.22755034,104760.0,104750.0,0.28201247]
[1750388331418,1.23709569,104760.0,104750.0,0.28201247]
[1750388331857,1.2370956,104760.0,104750.0,0.28201247]
[1750388332054,1.2370956,104760.0,104750.0,0.27246648]
[1750388332261,1.2370956,104760.0,104750.0,0.28201247]
[1750388333740,1.43755442,104760.0,104750.0,0.26292076]
[1750388334258,1.24664186,104760.0,104750.0,0.27246702]
[1750388334477,1.2343688,104760.0,104750.0,0.25337441]
[1750388334694,1.42792934,104760.0,104750.0,0.26169094]
[1750388334898,1.42792934,104760.0,104750.0,0.24953729]
[1750388335102,1.23436934,104760.0,104750.0,0.28008355]
[1750388335307,1.42792934,104760.0,104750.0,0.27170729]
[1750388335771,1.41838417,104760.0,104750.0,0.26216094]
[1750388336167,1.41838417,104760.0,104750.0,0.26216085]
[1750388336833,1.22482417,104760.0,104750.0,0.26216085]
[1750388337021,1.41838417,104760.0,104750.0,0.27170711]
[1750388337275,1.41838417,104760.0,104750.0,0.26216085]
[1750388338383,1.41838417,104760.0,104750.0,0.27170729]
[1750388338821,1.41838417,104760.0,104750.0,0.28125355]
[1750388339745,1.41838417,104760.0,104750.0,0.27170729]
[1750388340625,1.41838417,104760.0,104750.0,0.28125355]
[1750388341278,1.21792599,104760.0,104750.0,0.28125337]
[1750388341501,1.21792599,104760.0,104750.0,0.28125346]
[1750388341716,1.40883855,104760.0,104750.0,0.28125346]
[1750388341932,1.41838417,104760.0,104750.0,0.28125355]
[1750388342816,1.41838417,104760.0,104750.0,0.29079972]
[1750388343512,1.41838417,104760.0,104750.0,0.28125355]
[1750388343941,1.41838417,104760.0,104750.0,0.29079972]
[1750388344840,1.41838417,104760.0,104750.0,0.28125355]
[1750388345281,1.41838417,104760.0,104750.0,0.27170729]
[1750388345720,1.41838417,104760.0,104750.0,0.28125355]
[1750388347294,1.41838417,104760.0,104750.0,0.27170729]
[1750388347471,1.41838417,104760.0,104750.0,0.28125355]
[1750388348741,1.41838417,104760.0,104750.0,0.27170729]
[1750388349000,1.41838417,104760.0,104750.0,0.28125355]
[1750388349714,1.41838417,104760.0,104750.0,0.26216094]
[1750388349937,1.41838417,104760.0,104750.0,0.2717072]
[1750388351484,1.41838417,104760.0,104750.0,0.28125337]
[1750388351713,1.41838417,104760.0,104750.0,0.2717072]
[1750388351936,1.41838417,104760.0,104750.0,0.28125337]
[1750388352193,1.41838417,104760.0,104750.0,0.29079945]
[1750388352390,1.41838417,104760.0,104750.0,0.28125337]
[1750388354026,1.21792599,104760.0,104750.0,0.29079945]
[1750388354658,1.21792545,104760.0,104750.0,0.29079945]
[1750388354890,1.22747089,104760.0,104750.0,0.29079891]
[1750388355619,1.22747089,104760.0,104750.0,0.28125292]
[1750388355844,1.23701651,104760.0,104750.0,0.28125292]
[1750388356070,1.22747089,104760.0,104750.0,0.28125292]
[1750388356276,1.42792907,104760.0,104750.0,0.25261441]
[1750388356493,1.42792907,104760.0,104750.0,0.27170684]
[1750388356714,1.08792907,104760.0,104750.0,0.27170684]
[1750388357593,1.08792907,104760.0,104750.0,0.27170702]
[1750388357807,1.08792907,104760.0,104750.0,0.2812531]
[1750388358473,0.88747089,104760.0,104750.0,0.2812531]
[1750388358690,0.88747089,104760.0,104750.0,0.29079909]
[1750388358914,1.23701642,104760.0,104750.0,0.2812531]
[1750388359132,1.23701642,104760.0,104750.0,0.29079909]
[1750388359348,1.42792898,104760.0,104750.0,0.2812531]
[1750388359557,1.42792898,104760.0,104750.0,0.28125319]
[1750388359988,1.23701642,104760.0,104750.0,0.29079927]
[1750388360421,1.24656204,104760.0,104750.0,0.29079927]
[1750388361202,1.23701642,104760.0,104750.0,0.29079927]
[1750388361453,1.23701642,104760.0,104750.0,0.28125283]
[1750388362806,1.42792898,104760.0,104750.0,0.27170675]
[1750388363270,1.42792898,104760.0,104750.0,0.28125283]
[1750388364851,1.23701642,104760.0,104750.0,0.29079882]
[1750388365544,0.55465025,104760.0,104750.0,0.29079837]
[1750388365769,1.22747098,104760.0,104750.0,0.28125247]
[1750388365991,1.22747089,104760.0,104750.0,0.29079837]
[1750388366681,1.23701642,104760.0,104750.0,0.28125247]
[1750388368020,1.22747089,104760.0,104750.0,0.29079837]
[1750388369352,1.06376545,104760.0,104750.0,0.29079837]
[1750388369565,1.22743089,104760.0,104750.0,0.29079837]
[1750388370011,0.56415569,104760.0,104750.0,0.29079837]
[1750388370195,1.22743089,104760.0,104750.0,0.29079837]
[1750388370411,1.2274308,104760.0,104750.0,0.29079837]
[1750388371566,1.21788545,104760.0,104750.0,0.29079837]
[1750388371963,1.21784536,104760.0,104750.0,0.29079837]
[1750388373252,0.55457016,104760.0,104750.0,0.29079837]
[1750388373460,1.21600536,104760.0,104750.0,0.29079837]
[1750388373675,1.22555071,104760.0,104750.0,0.29079837]
[1750388373894,1.21600536,104760.0,104750.0,0.29079837]
[1750388374122,1.22555071,104760.0,104750.0,0.29079837]
[1750388374950,1.21600536,104760.0,104750.0,0.29079837]
[1750388376011,1.17664536,104760.0,104750.0,0.29079837]
[1750388379544,0.34016,104760.0,104750.0,0.29079837]
[1750388380010,0.6717976,104760.0,104750.0,0.44491837]
[1750388383038,1.0034352,104760.0,104750.0,0.44491837]
[1750388383254,0.6717976,104760.0,104750.0,0.44491837]
[1750388388398,1.0034352,104760.0,104750.0,0.44491837]
[1750388389298,1.02252508,104760.0,104750.0,0.44491837]
[1750388389967,1.02252499,104760.0,104750.0,0.44491837]
[1750388393988,1.03207016,104760.0,104750.0,0.44491837]